Workbook

Sheet Visione d'insieme
D1: Dipartimento federale della difesa, della protezione della popolazione e dello sport DDPS Ufficio federale della protezione della popolazione UFPP Laboratorio Spiez
A3: Calcolo giustificativo semplificato dei fissaggi resistenti agli urti
A5: Per il calcolo giustificativo dei fissaggi resistenti agli urti, vengono calcolate le forze agenti (forze di fissaggio) su un elemento durante una sollecitazione improvvisa dei fissaggi (ancoraggi, tasselli).
A7: Le forze agenti sull'elemento montato, causate dalla sollecitazione improvvisa, sono prese in considerazione come carichi sostitutivi che agiscono sul centro di gravità di massa dell'elemento stesso.
A9: Per quanto riguarda le direzioni dell'effetto d'urto, le forze di fissaggio S devono fondamentalmente essere calcolate in tutte le direzioni spaziali positive e negative x, y e z. Le forze di fissaggio massime Smax sono determinanti per il calcolo giustificativo.
A11: Per il calcolo giustificativo semplificato si presuppone che l'elemento montato abbia una rigidità ideale e che i fissaggi (ancoraggio, tasselli) siano sollecitati in modo uniforme (bilanciamento del carico).
A13: I seguenti fogli di lavoro permettono di calcolare le forze di fissaggio S per i gradi di protezione "base" e "3 bar" necessarie per il rapporto di sicurezza della resistenza agli urti nelle sei situazioni raffigurate (luoghi previsti per il fissaggio):
A15: Immissione dei dati (massa dell'elemento montato, posizione del centro di gravità di massa, numero di fissaggi, dimensioni) nelle caselle gialle
A16: I risultati (forze di fissaggio) appaiono nelle caselle verdi
A18: Fissaggio a pavimento | B18: Fissaggio a soffitto | C18: Fissaggio a parete | D18: Fissaggio su una mensola murale | E18: Fissaggio a pavimento e a parete | F18: Fissaggio a soffitto e a parete
F21: dash@bbs 2018

Sheet Pavimento
F1: Dipartimento federale della difesa, della protezione della popolazione e dello sport DDPS Ufficio federale della protezione della popolazione UFPP Laboratorio Spiez
A2: Fissaggio dell'elemento da montare a pavimento
A4: Grado di protezione | D4: Base
A7: Elemento da montare
A8: Massa | B8: m | C8: [kg] | D8: 125
A9: Numero di fissaggi (tasselli, ancoraggi) | B9: n | C9: [-] | D9: 6
A10: Dimensioni | B10: bx | C10: [mm] | D10: 800
B11: ex | C11: [mm] | D11: 100
B12: by | C12: [mm] | D12: 1200
B13: ey | C13: [mm] | D13: 150
B14: hz | C14: [mm] | D14: 600
A17: Forza di fissaggio | F17: Prova della sicurezza strutturale
A18: Con sollecitazione improvvisa in direzione x | B18: Sx | C18: [kN] | D18: =(D$8*Hilfstabelle!D6/D$9*(1+4*(D$14/D10)^2)^0.5)/1000 -> 5.868410279 | F18: Per i fissaggi resistenti agli urti nelle costruzioni di protezione, scegliere dei tasselli / degli ancoraggi omologati dall'UFPP. Carico ammissibile Ramm secondo la banca dati delle componenti della protezione civile (ZKDB):
A19: Con sollecitazione improvvisa in direzione y | B19: Sy | C19: [kN] | D19: =(D$8*Hilfstabelle!D6/D$9*(1+4*(D$14/D12)^2)^0.5)/1000 -> 4.603559773
A20: Con sollecitazione improvvisa in direzione z | B20: Sz+ | C20: [kN] | D20: =(D8*(Hilfstabelle!D6-9.81)/D9*(1+2*D11/D10)*(1+2*D13/D12))/1000 -> 4.766927083 | F20: https://www.zkdb.vbs.admin.ch
A21: Forza di fissaggio massima | B21: Smax | C21: [kN] | D21: =MAX(D18:D20) -> 5.868410279 | F21: Ramm ≥ Smax
A24: Calcolo giustificativo semplificato dei fissaggi resistenti agli urti | G24: Data: | H24: 2018-10-03
A25: Apparato, Installazione, Lavorato, Tipo, Serie | G25: Visto: | H25: dash

Sheet Soffitto
F1: Dipartimento federale della difesa, della protezione della popolazione e dello sport DDPS Ufficio federale della protezione della popolazione UFPP Laboratorio Spiez
A2: Fissaggio dell'elemento da montare a soffitto
A4: Grado di protezione | D4: Base
A7: Elemento da montare
A8: Massa | B8: m | C8: [kg] | D8: 100
A9: Numero di fissaggi (tasselli, ancoraggi) | B9: n | C9: [-] | D9: 6
A10: Dimensioni | B10: bx | C10: [mm] | D10: 800
B11: ex | C11: [mm] | D11: 100
B12: by | C12: [mm] | D12: 1200
B13: ey | C13: [mm] | D13: 150
B14: hz | C14: [mm] | D14: 400
A17: Forza di fissaggio | F17: Prova della sicurezza strutturale
A18: Con sollecitazione improvvisa in direzione x | B18: Sx | C18: [kN] | D18: =$D$8/$D$9*((Hilfstabelle!D7)^2+(2*Hilfstabelle!D7*$D$14/D10+9.81)^2)^0.5/1000 -> 3.800218784 | F18: Per i fissaggi resistenti agli urti nelle costruzioni di protezione, scegliere dei tasselli / degli ancoraggi omologati dall'UFPP. Carico ammissibile Ramm secondo la banca dati delle componenti della protezione civile (ZKDB):
A19: Con sollecitazione improvvisa in direzione y | B19: Sy | C19: [kN] | D19: =$D$8/$D$9*((Hilfstabelle!D7)^2+(2*Hilfstabelle!D7*$D$14/D12+9.81)^2)^0.5/1000 -> 3.223384309
A20: Con sollecitazione improvvisa in direzione z | B20: Sz- | C20: [kN] | D20: =D8*(Hilfstabelle!D7+9.81)/D9*(1+2*D11/D10)*(1+2*D13/D12)/1000 -> 4.324479167 | F20: https://www.zkdb.vbs.admin.ch
A21: Forza di fissaggio massima | B21: Smax | C21: [kN] | D21: =MAX(D18:D20) -> 4.324479167 | F21: Ramm ≥ Smax
A24: Calcolo giustificativo semplificato dei fissaggi resistenti agli urti | G24: Data: | H24: 2018-10-03
A25: Apparato, Installazione, Lavorato, Tipo, Serie | G25: Visto: | H25: dash

Sheet Parete
F1: Dipartimento federale della difesa, della protezione della popolazione e dello sport DDPS Ufficio federale della protezione della popolazione UFPP Laboratorio Spiez
A2: Fissaggio dell'elemento da montare a parete
A4: Grado di protezione | D4: Base
A7: Elemento da montare
A8: Massa | B8: m | C8: [kg] | D8: 100
A9: Numero di fissaggi (tasselli, ancoraggi) | B9: n | C9: [-] | D9: 6
A10: Dimensioni | B10: bx | C10: [mm] | D10: 800
B11: ex | C11: [mm] | D11: 100
B12: bz | C12: [mm] | D12: 1200
B13: ez | C13: [mm] | D13: 150
B14: hy | C14: [mm] | D14: 500
A17: Forza di fissaggio | F17: Prova della sicurezza strutturale
A18: Con sollecitazione improvvisa in direzione x | B18: Sx | C18: [kN] | D18: =(D8/D9*((Hilfstabelle!D8)^2+(9.81^2)+(4*(D14^2))*(Hilfstabelle!D8/D10+9.81/D12)^2)^0.5)/1000 -> 4.279066008 | F18: Per i fissaggi resistenti agli urti nelle costruzioni di protezione, scegliere dei tasselli / degli ancoraggi omologati dall'UFPP. Carico ammissibile Ramm secondo la banca dati delle componenti della protezione civile (ZKDB):
A19: Con sollecitazione improvvisa in direzione y | B19: Sy | C19: [kN] | D19: =(D8/D9*((9.81^2)+((Hilfstabelle!D8*(1+(2*D11/D10))*(1+(2*D13/D12))+(2*9.81*D14/D12)))^2)^0.5)/1000 -> 4.208437646
A20: Con sollecitazione improvvisa in direzione z | B20: Sz- | C20: [kN] | D20: =(D8*(Hilfstabelle!D8+9.81)/D9*(1+(4*(D14/D12)^2))^0.5)/1000 -> 3.602694614 | F20: https://www.zkdb.vbs.admin.ch
A21: Forza di fissaggio massima | B21: Smax | C21: [kN] | D21: =MAX(D18:D20) -> 4.279066008 | F21: Ramm ≥ Smax
A24: Calcolo giustificativo semplificato dei fissaggi resistenti agli urti | G24: Data: | H24: 2018-10-03
A25: Apparato, Installazione, Lavorato, Tipo, Serie | G25: Visto: | H25: dash

Sheet Mensola murale
F1: Dipartimento federale della difesa, della protezione della popolazione e dello sport DDPS Ufficio federale della protezione della popolazione UFPP Laboratorio Spiez
A2: Fissaggio dell'elemento da montare su una mensola a parete (mensola murale)
A4: Grado di protezione | D4: Base
A7: Elemento da montare
A8: Massa | B8: m | C8: [kg] | D8: 65
A9: Numero di mensole | B9: k | C9: [-] | D9: 2
A10: Numero di fissaggi per ogni mensola | B10: nK | C10: [-] | D10: 3
A11: Dimensioni | B11: bx | C11: [mm] | D11: 600
B12: hy | C12: [mm] | D12: 300
B13: hz | C13: [mm] | D13: 250
B14: bz | C14: [mm] | D14: 500
B15: z1 | C15: [mm] | D15: 50
B16: z2 | C16: [mm] | D16: 350
B17: z3 | C17: [mm] | D17: 450
B18: z4 | C18: [mm]
A21: Forza di fissaggio | F21: Prova della sicurezza strutturale
A22: Con sollecitazione improvvisa in direzione x | B22: Sx | C22: [kN] | D22: =(D8/D9*(1/(D10^2)*((Hilfstabelle!D9)^2+(9.81^2))+D12^2*(2*Hilfstabelle!D9/(D10*D11)+9.81/SUM('Mensola murale'!D15:D18))^2)^0.5)/1000 -> 2.476979728 | F22: Per i fissaggi resistenti agli urti nelle costruzioni di protezione, scegliere dei tasselli / degli ancoraggi omologati dall'UFPP. Carico ammissibile Ramm secondo la banca dati delle componenti della protezione civile (ZKDB):
A23: Con sollecitazione improvvisa in direzione y+ | B23: Sy+ | C23: [kN] | D23: =($D$8/$D$9*((9.81/$D$10)^2+((Hilfstabelle!D9*($D$13+$D$14)+9.81*$D$12)/SUM($D$15:$D$18))^2)^0.5)/1000 -> 4.594454296
A24: Con sollecitazione improvvisa in direzione y- | B24: Sy- | C24: [kN] | D24: =(D8/D9*((9.81/D10)^2+((Hilfstabelle!D9*(D13+D14)-(9.81*D12))/(D10*(D14-((D15+D16+D17+D18)/D10))))^2)^0.5)/1000 -> 5.713213529
A25: Con sollecitazione improvvisa in direzione z+ | B25: Sz+ | C25: [kN] | D25: =(D8/D9*((9.81/D10)^2+((Hilfstabelle!D9-9.81)*D12/(D10*(D14-((D15+D16+D17+D18)/D10))))^2)^0.5)/1000 -> 2.199169374 | F25: https://www.zkdb.vbs.admin.ch
A26: Con sollecitazione improvvisa in direzione z- | B26: Sz- | C26: [kN] | D26: =($D$8/$D$9*((9.81/$D$10)^2+((Hilfstabelle!D9+9.81)*$D$12/SUM($D$15:$D$18))^2)^0.5)/1000 -> 1.907768284
A27: Forza di fissaggio massima | B27: Smax | C27: [kN] | D27: =MAX(D22:D26) -> 5.713213529 | F27: Ramm ≥ Smax
A30: Calcolo giustificativo semplificato dei fissaggi resistenti agli urti | G30: Data: | H30: 2018-10-03
A31: Apparato, Installazione, Lavorato, Tipo, Serie | G31: Visto: | H31: dash

Sheet Pavimento-Parete
F1: Dipartimento federale della difesa, della protezione della popolazione e dello sport DDPS Ufficio federale della protezione della popolazione UFPP Laboratorio Spiez
A2: Fissaggio dell'elemento da montare a pavimento e a parete
A4: Grado di protezione | D4: Base
A7: Elemento da montare
A8: Massa | B8: m | C8: [kg] | D8: 200
A9: Numero di fissaggi a pavimento | B9: nB | C9: [-] | D9: 4
A10: Numero di fissaggi a parete | B10: nW | C10: [-] | D10: 2
A11: Dimensioni | B11: bx | C11: [mm] | D11: 800
B12: by | C12: [mm] | D12: 600
B13: bz | C13: [mm] | D13: 2000
B14: hy | C14: [mm] | D14: 300
B15: hz | C15: [mm] | D15: 1000
A18: Forza di fissaggio | F18: Prova della sicurezza strutturale
A19: Con sollecitazione improvvisa in direzione x | B19: Sx, B | C19: [kN] | D19: =$D$8*Hilfstabelle!D10*((1/($D$10+$D$9))+(2*$D$14/($D$10*$D$11+$D$9*$D$12)))/1000 -> 9.895833333 | F19: Per i fissaggi resistenti agli urti nelle costruzioni di protezione, scegliere dei tasselli / degli ancoraggi omologati dall'UFPP. Carico ammissibile Ramm secondo la banca dati delle componenti della protezione civile (ZKDB):
A20: Con sollecitazione improvvisa in direzione x | B20: Sx,W | C20: [kN] | D20: =$D$8*Hilfstabelle!D10*((1/($D$10+$D$9))^2+(2*$D$14/($D$10*$D$11+$D$9*$D$12))^2)^0.5/1000 -> 7.007095858
A21: Con sollecitazione improvvisa in direzione y+ | B21: Sy+,B | C21: [kN] | D21: =($D$8*Hilfstabelle!$D$10/$D$9)*(1-($D$15/$D$13))/1000 -> 3.90625
A22: Con sollecitazione improvvisa in direzione y+ | B22: Sy+,W | C22: [kN] | D22: =$D$8*Hilfstabelle!$D$10/$D$10*($D$15/$D$13)/1000 -> 7.8125 | F22: https://www.zkdb.vbs.admin.ch
A23: Con sollecitazione improvvisa in direzione z+ | B23: Sz+,B | C23: [kN] | D23: =($D$8*(Hilfstabelle!$D$10-9.81)/$D$9)*($D$14/$D$12)/1000 -> 3.661
A24: Con sollecitazione improvvisa in direzione z+ | B24: Sz+,W | C24: [kN] | D24: =($D$8*(Hilfstabelle!$D$10-9.81)/$D$10)*(1-($D$14/$D$12))/1000 -> 7.322
A25: Forza di fissaggio massima | B25: Smax | C25: [kN] | D25: =MAX(D19:D24) -> 9.895833333 | F25: Ramm ≥ Smax
A28: Calcolo giustificativo semplificato dei fissaggi resistenti agli urti | G28: Data: | H28: 2018-10-03
A29: Apparato, Installazione, Lavorato, Tipo, Serie | G29: Visto: | H29: dash

Sheet Soffitto-Parete
F1: Dipartimento federale della difesa, della protezione della popolazione e dello sport DDPS Ufficio federale della protezione della popolazione UFPP Laboratorio Spiez
A2: Fissaggio dell'elemento da montare a soffitto e a parete
A4: Grado di protezione | D4: Base
A7: Elemento da montare
A8: Massa | B8: m | C8: [kg] | D8: 150
A9: Numero di fissaggi | B9: n | C9: [-] | D9: 8
A10: Dimensioni | B10: bx | C10: [mm] | D10: 1200
B11: by | C11: [mm] | D11: 900
B12: bz | C12: [mm] | D12: 750
B13: hy | C13: [mm] | D13: 450
B14: hz | C14: [mm] | D14: 350
A17: Forza di fissaggio | F17: Prova della sicurezza strutturale
A18: Con sollecitazione improvvisa in direzione x | B18: Sx,D | C18: [kN] | D18: =$D$8/$D$9*((Hilfstabelle!$D$11)^2+4*((Hilfstabelle!$D$11*$D$13/$D$10)+9.81)^2)^0.5/1000 -> 3.893971658 | F18: Per i fissaggi resistenti agli urti nelle costruzioni di protezione, scegliere dei tasselli / degli ancoraggi omologati dall'UFPP. Carico ammissibile Ramm secondo la banca dati delle componenti della protezione civile (ZKDB):
A19: Con sollecitazione improvvisa in direzione x | B19: Sx,W | C19: [kN] | D19: =$D$8/$D$9*((Hilfstabelle!$D$11)^2+(9.81)^2+4*(Hilfstabelle!$D$11*$D$13/$D$10)^2)^0.5/1000 -> 3.666725798
A20: Con sollecitazione improvvisa in direzione y+ | B20: Sy+,D | C20: [kN] | D20: =2*D8/D9*((Hilfstabelle!D11)^2+(9.81*D13/D11)^2)^0.5/1000 -> 5.862261372
A21: Con sollecitazione improvvisa in direzione y+ | B21: Sy+,W | C21: [kN] | D21: =2*D8/D9*((Hilfstabelle!D11*D14/D12)^2+(9.81)^2)^0.5/1000 -> 2.759010449 | F21: https://www.zkdb.vbs.admin.ch
A22: Con sollecitazione improvvisa in direzione z- | B22: Sz-,D | C22: [kN] | D22: =2*$D$8/$D$9*(Hilfstabelle!$D$11+9.81)*D13/D11/1000 -> 3.113625
A23: Con sollecitazione improvvisa in direzione z- | B23: Sz-,W | C23: [kN] | D23: =2*$D$8/$D$9*(Hilfstabelle!$D$11+9.81)/1000 -> 6.22725
A24: Forza di fissaggio massima | B24: Smax | C24: [kN] | D24: =MAX(D18:D23) -> 6.22725 | F24: Ramm ≥ Smax
A27: Calcolo giustificativo semplificato dei fissaggi resistenti agli urti | G27: Data: | H27: 2018-10-03
A28: Apparato, Installazione, Lavorato, Tipo, Serie | G28: Visto: | H28: dash

Sheet Hilfstabelle (hidden)
A1: Schutzgrade
A2: Base
A3: 3 bar
A5: Eingesetzter a x DLF Wert
A6: a x DLF | B6: Boden | C6: [m/s2] | D6: =IF(Pavimento!D4="Base",156.25,IF(Pavimento!D4="3 bar",256)) -> 156.25
A7: a x DLF | B7: Decke | C7: [m/s2] | D7: =IF(Soffitto!D4="Base",156.25,IF(Soffitto!D4="3 bar",256)) -> 156.25
A8: a x DLF | B8: Wand | C8: [m/s2] | D8: =IF(Parete!D4="Base",156.25,IF(Parete!D4="3 bar",256)) -> 156.25
A9: a x DLF | B9: Wandkonsole | C9: [m/s2] | D9: =IF('Mensola murale'!D4="Base",156.25,IF('Mensola murale'!D4="3 bar",256)) -> 156.25
A10: a x DLF | B10: Boden-Wand | C10: [m/s2] | D10: =IF('Pavimento-Parete'!D4="Base",156.25,IF('Pavimento-Parete'!D4="3 bar",256)) -> 156.25
A11: a x DLF | B11: Decke-Wand | C11: [m/s2] | D11: =IF('Soffitto-Parete'!D4="Base",156.25,IF('Soffitto-Parete'!D4="3 bar",256)) -> 156.25
